[Event "New Zealand Rapid Championship"]
[Site "Wellington"]
[Date "2023.01.12"]
[Round "7.8"]
[White "Sole, Michael D"]
[Black "Nyberg, Michael"]
[Result "1-0"]
[TimeControl "25+5"]
[WhiteFideId "4309030"]
[BlackFideId "4301064"]
[WhiteElo "2093"]
[BlackElo "1951"]

1. e4 {[%clk 00:25:08]} {[%emt 00:00:02]} e5 {[%clk 00:25:03]} {[%emt
00:00:07]} 2. Nf3 {[%clk 00:25:08]} {[%emt 00:00:05]} Nc6 {[%clk 00:25:03]}
{[%emt 00:00:05]} 3. Bb5 {[%clk 00:25:08]} {[%emt 00:00:05]} a6 {[%clk
00:25:02]} {[%emt 00:00:05]} 4. Ba4 {[%clk 00:25:09]} {[%emt 00:00:05]} Nf6
{[%clk 00:25:00]} {[%emt 00:00:06]} 5. O-O {[%clk 00:25:10]} {[%emt 00:00:04]}
Be7 {[%clk 00:24:56]} {[%emt 00:00:09]} 6. Re1 {[%clk 00:25:10]} {[%emt
00:00:05]} b5 {[%clk 00:24:56]} {[%emt 00:00:06]} 7. Bb3 {[%clk 00:25:12]}
{[%emt 00:00:03]} O-O {[%clk 00:24:51]} {[%emt 00:00:09]} 8. a4 {[%clk
00:23:28]} {[%emt 00:01:49]} Bb7 {[%clk 00:24:09]} {[%emt 00:00:47]} 9. d3
{[%clk 00:23:21]} {[%emt 00:00:12]} d6 {[%clk 00:23:13]} {[%emt 00:01:01]} 10.
Bd2 {[%clk 00:23:19]} {[%emt 00:00:07]} Nd7 {[%clk 00:22:36]} {[%emt 00:00:42]}
11. c3 {[%clk 00:22:28]} {[%emt 00:00:57]} Nc5 {[%clk 00:21:14]} {[%emt
00:01:27]} 12. Bc2 {[%clk 00:22:31]} {[%emt 00:00:02]} Ne6 {[%clk 00:20:21]}
{[%emt 00:00:58]} 13. Be3 {[%clk 00:20:32]} {[%emt 00:02:04]} Bf6 {[%clk
00:19:02]} {[%emt 00:01:23]} 14. Nbd2 {[%clk 00:20:22]} {[%emt 00:00:15]} Kh8
{[%clk 00:17:49]} {[%emt 00:01:17]} 15. Nf1 {[%clk 00:20:11]} {[%emt 00:00:16]}
d5 {[%clk 00:14:54]} {[%emt 00:03:00]} 16. exd5 {[%clk 00:19:38]} {[%emt
00:00:37]} Qxd5 {[%clk 00:14:57]} {[%emt 00:00:02]} 17. Ng3 {[%clk 00:19:26]}
{[%emt 00:00:17]} Nf4 {[%clk 00:13:38]} {[%emt 00:01:24]} 18. Bxf4 {[%clk
00:19:16]} {[%emt 00:00:15]} exf4 {[%clk 00:13:41]} {[%emt 00:00:02]} 19. Ne4
{[%clk 00:19:20]} {[%emt 00:00:01]} Be7 {[%clk 00:13:06]} {[%emt 00:00:40]} 20.
d4 {[%clk 00:18:09]} {[%emt 00:01:16]} f5 {[%clk 00:12:37]} {[%emt 00:00:33]}
21. Bb3 {[%clk 00:17:35]} {[%emt 00:00:40]} Qd8 {[%clk 00:12:14]} {[%emt
00:00:28]} 22. Nc5 {[%clk 00:16:36]} {[%emt 00:01:04]} Bxc5 {[%clk 00:11:54]}
{[%emt 00:00:25]} 23. dxc5 {[%clk 00:16:39]} {[%emt 00:00:02]} Na5 {[%clk
00:09:31]} {[%emt 00:02:28]} 24. Qxd8 {[%clk 00:15:33]} {[%emt 00:01:10]} Raxd8
{[%clk 00:09:06]} {[%emt 00:00:31]} 25. Bc2 {[%clk 00:15:23]} {[%emt 00:00:15]}
Bxf3 {[%clk 00:08:53]} {[%emt 00:00:18]} 26. gxf3 {[%clk 00:15:27]} {[%emt
00:00:02]} Nc4 {[%clk 00:08:14]} {[%emt 00:00:44]} 27. axb5 {[%clk 00:15:17]}
{[%emt 00:00:15]} axb5 {[%clk 00:08:17]} {[%emt 00:00:01]} 28. b4 {[%clk
00:14:31]} {[%emt 00:00:51]} g6 {[%clk 00:07:46]} {[%emt 00:00:35]} 29. Red1
{[%clk 00:14:10]} {[%emt 00:00:26]} Rfe8 {[%clk 00:06:42]} {[%emt 00:01:09]} 30.
Rxd8 {[%clk 00:13:56]} {[%emt 00:00:19]} Rxd8 {[%clk 00:06:46]} 31. Rd1 {[%clk
00:13:58]} {[%emt 00:00:03]} Re8 {[%clk 00:05:46]} {[%emt 00:01:05]} 32. Kf1
{[%clk 00:13:05]} {[%emt 00:00:57]} Re7 {[%clk 00:05:23]} {[%emt 00:00:29]} 33.
Bb3 {[%clk 00:12:20]} {[%emt 00:00:50]} Ne5 {[%clk 00:04:29]} {[%emt 00:00:59]}
34. Kg2 {[%clk 00:12:09]} {[%emt 00:00:16]} Kg7 {[%clk 00:04:29]} {[%emt
00:00:05]} 35. Re1 {[%clk 00:11:39]} {[%emt 00:00:35]} Kf6 {[%clk 00:04:32]}
{[%emt 00:00:02]} 36. Rd1 {[%clk 00:11:10]} {[%emt 00:00:35]} g5 {[%clk
00:04:34]} {[%emt 00:00:03]} 37. Rd8 {[%clk 00:11:09]} {[%emt 00:00:06]} g4
{[%clk 00:04:17]} {[%emt 00:00:22]} 38. fxg4 {[%clk 00:10:46]} {[%emt
00:00:29]} fxg4 {[%clk 00:04:20]} {[%emt 00:00:01]} 39. Rf8+ {[%clk 00:10:46]}
{[%emt 00:00:05]} Kg5 {[%clk 00:04:24]} {[%emt 00:00:01]} 40. Bc2 {[%clk
00:10:16]} {[%emt 00:00:35]} h5 {[%clk 00:04:02]} {[%emt 00:00:27]} 41. Rf5+
{[%clk 00:09:38]} {[%emt 00:00:43]} Kh4 {[%clk 00:03:49]} {[%emt 00:00:18]} 42.
Rxf4 {[%clk 00:09:37]} {[%emt 00:00:05]} Nf3 {[%clk 00:03:49]} {[%emt
00:00:05]} 43. Be4 {[%clk 00:08:36]} {[%emt 00:01:06]} Nd2 {[%clk 00:02:59]}
{[%emt 00:00:55]} 44. Bc6 {[%clk 00:06:36]} {[%emt 00:02:05]} Nb1 {[%clk
00:02:42]} {[%emt 00:00:23]} 45. c4 {[%clk 00:06:02]} {[%emt 00:00:39]} bxc4
{[%clk 00:02:44]} {[%emt 00:00:02]} 46. Rxc4 {[%clk 00:06:06]} {[%emt
00:00:02]} Nd2 {[%clk 00:02:48]} 47. Rd4 {[%clk 00:06:02]} {[%emt 00:00:07]}
Nb3 {[%clk 00:01:55]} {[%emt 00:00:58]} 48. Rd7 {[%clk 00:06:05]} {[%emt
00:00:02]} Rxd7 {[%clk 00:01:38]} {[%emt 00:00:23]} 49. Bxd7 {[%clk 00:06:08]}
{[%emt 00:00:02]} Kg5 {[%clk 00:01:40]} {[%emt 00:00:03]} 50. Be6 {[%clk
00:05:47]} {[%emt 00:00:25]} Nd4 {[%clk 00:01:39]} {[%emt 00:00:06]} 51. Bd5
{[%clk 00:05:45]} {[%emt 00:00:05]} Kf4 {[%clk 00:01:41]} {[%emt 00:00:04]} 52.
h3 {[%clk 00:05:24]} {[%emt 00:00:26]} Kg5 {[%clk 00:01:09]} {[%emt 00:00:38]}
53. hxg4 {[%clk 00:05:13]} {[%emt 00:00:16]} Kxg4 {[%clk 00:01:13]} 54. Bc4
{[%clk 00:03:59]} {[%emt 00:01:18]} c6 {[%clk 00:01:04]} {[%emt 00:00:14]} 55.
Bd3 {[%clk 00:03:19]} {[%emt 00:00:45]} h4 {[%clk 00:00:59]} {[%emt 00:00:12]}
56. Be4 {[%clk 00:03:15]} {[%emt 00:00:08]} Kf4 {[%clk 00:00:32]} {[%emt
00:00:31]} 57. f3 {[%clk 00:02:02]} {[%emt 00:01:20]} Kg5 {[%clk 00:00:29]}
{[%emt 00:00:07]} 58. Kh3 {[%clk 00:01:21]} {[%emt 00:00:44]} Kf4 {[%clk
00:00:09]} {[%emt 00:00:26]} 59. Kxh4 {[%clk 00:01:19]} {[%emt 00:00:07]} Nxf3
{[%clk 00:00:13]} {[%emt 00:00:01]} 60. Bxf3 {[%clk 00:01:18]} {[%emt
00:00:06]} Kxf3 {[%clk 00:00:18]} 61. b5 {[%clk 00:01:18]} {[%emt 00:00:05]}
cxb5 {[%clk 00:00:22]} 62. c6 {[%clk 00:01:23]} b4 {[%clk 00:00:27]} 63. c7
{[%clk 00:01:27]} 1-0

[Event "New Zealand Rapid Championship"]
[Site "Wellington"]
[Date "2023.01.12"]
[Round "7.9"]
[White "Cummings, Nick"]
[Black "Perrin, Brent"]
[Result "1/2-1/2"]
[TimeControl "25+5"]
[WhiteFideId "4301218"]
[BlackFideId "451380"]
[WhiteElo "2038"]
[BlackElo "1856"]

1. Nf3 {[%clk 00:25:08]} {[%emt 00:00:01]} f5 {[%clk 00:25:06]} {[%emt
00:00:04]} 2. d3 {[%clk 00:25:11]} {[%emt 00:00:02]} Nf6 {[%clk 00:25:09]}
{[%emt 00:00:02]} 3. e4 {[%clk 00:25:14]} {[%emt 00:00:02]} d6 {[%clk
00:22:58]} {[%emt 00:02:16]} 4. Nc3 {[%clk 00:25:16]} {[%emt 00:00:03]} e5
{[%clk 00:22:53]} {[%emt 00:00:10]} 5. exf5 {[%clk 00:25:19]} {[%emt 00:00:02]}
Bxf5 {[%clk 00:22:41]} {[%emt 00:00:17]} 6. Qe2 {[%clk 00:22:55]} {[%emt
00:02:28]} Be7 {[%clk 00:21:59]} {[%emt 00:00:48]} 7. d4 {[%clk 00:20:57]}
{[%emt 00:02:03]} e4 {[%clk 00:19:48]} {[%emt 00:02:16]} 8. Ng5 {[%clk
00:14:33]} {[%emt 00:06:29]} O-O {[%clk 00:17:45]} {[%emt 00:02:08]} 9. Ngxe4
{[%clk 00:14:20]} {[%emt 00:00:19]} Nc6 {[%clk 00:17:35]} {[%emt 00:00:15]} 10.
Nxf6+ {[%clk 00:11:45]} {[%emt 00:02:39]} Bxf6 {[%clk 00:17:14]} {[%emt
00:00:26]} 11. Be3 {[%clk 00:11:48]} {[%emt 00:00:02]} a5 {[%clk 00:11:45]}
{[%emt 00:05:34]} 12. a3 {[%clk 00:08:30]} {[%emt 00:03:23]} Qd7 {[%clk
00:10:15]} {[%emt 00:01:35]} 13. Qd2 {[%clk 00:08:12]} {[%emt 00:00:23]} Rae8
{[%clk 00:07:47]} {[%emt 00:02:33]} 14. Be2 {[%clk 00:08:14]} {[%emt 00:00:03]}
d5 {[%clk 00:07:21]} {[%emt 00:00:31]} 15. O-O {[%clk 00:08:04]} {[%emt
00:00:15]} Re6 {[%clk 00:05:18]} {[%emt 00:02:09]} 16. Bf3 {[%clk 00:05:43]}
{[%emt 00:02:26]} Ne7 {[%clk 00:05:21]} {[%emt 00:00:02]} 17. Ne2 {[%clk
00:05:41]} {[%emt 00:00:07]} Ra6 {[%clk 00:02:30]} {[%emt 00:02:56]} 18. Rac1
{[%clk 00:05:12]} {[%emt 00:00:33]} Bg4 {[%clk 00:02:28]} {[%emt 00:00:08]} 19.
Bxg4 {[%clk 00:05:10]} {[%emt 00:00:06]} Qxg4 {[%clk 00:02:31]} {[%emt
00:00:01]} 20. Ng3 {[%clk 00:03:59]} {[%emt 00:01:16]} h5 {[%clk 00:02:30]}
{[%emt 00:00:07]} 21. Qe2 {[%clk 00:03:56]} {[%emt 00:00:08]} Qxe2 {[%clk
00:01:43]} {[%emt 00:00:52]} 22. Nxe2 {[%clk 00:04:00]} {[%emt 00:00:01]} Nf5
{[%clk 00:01:43]} {[%emt 00:00:05]} 23. c3 {[%clk 00:03:35]} {[%emt 00:00:30]}
g6 {[%clk 00:01:43]} {[%emt 00:00:05]} 24. Nf4 {[%clk 00:03:31]} {[%emt
00:00:07]} Nxe3 {[%clk 00:01:17]} {[%emt 00:00:33]} 25. fxe3 {[%clk 00:03:35]}
{[%emt 00:00:01]} Bg5 {[%clk 00:01:15]} {[%emt 00:00:07]} 26. Rce1 {[%clk
00:03:24]} {[%emt 00:00:16]} Rd6 {[%clk 00:01:00]} {[%emt 00:00:19]} 27. g3
{[%clk 00:03:13]} {[%emt 00:00:16]} c6 {[%clk 00:01:04]} {[%emt 00:00:02]} 28.
Kg2 {[%clk 00:02:43]} {[%emt 00:00:34]} Kg7 {[%clk 00:01:08]} {[%emt 00:00:02]}
29. Rf3 {[%clk 00:02:33]} {[%emt 00:00:15]} Re8 {[%clk 00:00:49]} {[%emt
00:00:24]} 30. Nd3 {[%clk 00:02:00]} {[%emt 00:00:38]} Rde6 {[%clk 00:00:39]}
{[%emt 00:00:15]} 31. Kf2 {[%clk 00:01:53]} {[%emt 00:00:11]} b6 {[%clk
00:00:40]} {[%emt 00:00:04]} 32. Ne5 {[%clk 00:01:37]} {[%emt 00:00:21]} b5
{[%clk 00:00:33]} {[%emt 00:00:13]} 33. Nd3 {[%clk 00:01:36]} {[%emt 00:00:05]}
Bf6 {[%clk 00:00:34]} {[%emt 00:00:05]} 34. Nc5 {[%clk 00:01:31]} {[%emt
00:00:10]} R6e7 {[%clk 00:00:38]} 35. Ke2 {[%clk 00:01:14]} {[%emt 00:00:22]}
g5 {[%clk 00:00:38]} {[%emt 00:00:06]} 36. Kd3 {[%clk 00:01:00]} {[%emt
00:00:19]} g4 {[%clk 00:00:38]} {[%emt 00:00:05]} 37. Rf2 {[%clk 00:00:57]}
{[%emt 00:00:06]} Kg6 {[%clk 00:00:32]} {[%emt 00:00:11]} 38. e4 {[%clk
00:00:42]} {[%emt 00:00:20]} dxe4+ {[%clk 00:00:36]} {[%emt 00:00:01]} 39. Rxe4
{[%clk 00:00:44]} {[%emt 00:00:05]} Bg5 {[%clk 00:00:26]} {[%emt 00:00:14]} 40.
Rfe2 {[%clk 00:00:45]} {[%emt 00:00:04]} Rxe4 {[%clk 00:00:27]} {[%emt
00:00:04]} 41. Rxe4 {[%clk 00:00:48]} {[%emt 00:00:01]} Rxe4 {[%clk 00:00:30]}
{[%emt 00:00:03]} 42. Nxe4 {[%clk 00:00:51]} {[%emt 00:00:02]} Bc1 {[%clk
00:00:33]} {[%emt 00:00:02]} 43. Kc2 {[%clk 00:00:54]} {[%emt 00:00:02]} Be3
{[%clk 00:00:37]} {[%emt 00:00:03]} 44. Kd3 {[%clk 00:00:50]} {[%emt 00:00:08]}
Bg1 {[%clk 00:00:40]} {[%emt 00:00:01]} 45. Ke2 {[%clk 00:00:53]} {[%emt
00:00:01]} Bxh2 {[%clk 00:00:31]} {[%emt 00:00:15]} 46. Kf2 {[%clk 00:00:57]}
{[%emt 00:00:01]} h4 {[%clk 00:00:35]} {[%emt 00:00:01]} 47. Kg2 {[%clk
00:00:59]} {[%emt 00:00:03]} hxg3 {[%clk 00:00:17]} {[%emt 00:00:23]} 48. Nc5
{[%clk 00:00:31]} {[%emt 00:00:33]} Kf5 {[%clk 00:00:18]} {[%emt 00:00:04]} 49.
Nb7 {[%clk 00:00:35]} {[%emt 00:00:01]} a4 {[%clk 00:00:19]} {[%emt 00:00:04]}
50. Nd8 {[%clk 00:00:39]} {[%emt 00:00:01]} c5 {[%clk 00:00:10]} {[%emt
00:00:14]} 51. dxc5 {[%clk 00:00:42]} {[%emt 00:00:02]} Ke5 {[%clk 00:00:14]}
{[%emt 00:00:01]} 52. Nb7 {[%clk 00:00:22]} {[%emt 00:00:26]} Kd5 {[%clk
00:00:17]} {[%emt 00:00:02]} 1/2-1/2

[Event "New Zealand Rapid Championship"]
[Site "Wellington"]
[Date "2023.01.12"]
[Round "7.10"]
[White "Langford, Joshua"]
[Black "Tanoi, T Edward"]
[Result "0-1"]
[TimeControl "25+5"]
[WhiteFideId "4314557"]
[BlackFideId "4302087"]
[WhiteElo "1843"]
[BlackElo "1883"]

1. e4 {[%clk 00:25:06]} {[%emt 00:00:03]} c5 {[%clk 00:25:09]} {[%emt
00:00:01]} 2. Nf3 {[%clk 00:25:09]} {[%emt 00:00:03]} Nc6 {[%clk 00:25:13]} 3.
d4 {[%clk 00:25:13]} {[%emt 00:00:01]} cxd4 {[%clk 00:25:16]} {[%emt 00:00:01]}
4. Nxd4 {[%clk 00:25:17]} {[%emt 00:00:01]} e5 {[%clk 00:25:20]} 5. Nb5 {[%clk
00:25:13]} {[%emt 00:00:09]} d6 {[%clk 00:25:23]} {[%emt 00:00:02]} 6. c4
{[%clk 00:25:00]} {[%emt 00:00:18]} Be6 {[%clk 00:25:26]} {[%emt 00:00:02]} 7.
N1c3 {[%clk 00:25:03]} {[%emt 00:00:03]} a6 {[%clk 00:25:30]} 8. Na3 {[%clk
00:25:07]} {[%emt 00:00:01]} g6 {[%clk 00:25:34]} 9. Nc2 {[%clk 00:25:08]}
{[%emt 00:00:04]} Bg7 {[%clk 00:25:36]} {[%emt 00:00:02]} 10. Bd3 {[%clk
00:25:09]} {[%emt 00:00:05]} Rc8 {[%clk 00:25:29]} {[%emt 00:00:12]} 11. O-O
{[%clk 00:24:45]} {[%emt 00:00:28]} Nf6 {[%clk 00:25:33]} {[%emt 00:00:01]} 12.
b3 {[%clk 00:24:40]} {[%emt 00:00:11]} O-O {[%clk 00:25:34]} {[%emt 00:00:03]}
13. Re1 {[%clk 00:24:41]} {[%emt 00:00:05]} b5 {[%clk 00:20:06]} {[%emt
00:05:33]} 14. Nd5 {[%clk 00:24:38]} {[%emt 00:00:08]} Bxd5 {[%clk 00:19:55]}
{[%emt 00:00:15]} 15. cxd5 {[%clk 00:23:51]} {[%emt 00:00:52]} Nd4 {[%clk
00:19:20]} {[%emt 00:00:41]} 16. Nxd4 {[%clk 00:23:51]} {[%emt 00:00:05]} exd4
{[%clk 00:19:23]} {[%emt 00:00:02]} 17. a4 {[%clk 00:23:18]} {[%emt 00:00:38]}
Rb8 {[%clk 00:17:15]} {[%emt 00:02:12]} 18. Ba3 {[%clk 00:21:55]} {[%emt
00:01:28]} b4 {[%clk 00:17:00]} {[%emt 00:00:20]} 19. Bb2 {[%clk 00:21:59]}
{[%emt 00:00:02]} a5 {[%clk 00:17:04]} {[%emt 00:00:01]} 20. Bxd4 {[%clk
00:21:38]} {[%emt 00:00:26]} Re8 {[%clk 00:17:08]} {[%emt 00:00:01]} 21. Rc1
{[%clk 00:20:42]} {[%emt 00:01:01]} Rc8 {[%clk 00:16:13]} {[%emt 00:00:59]} 22.
Qf3 {[%clk 00:19:13]} {[%emt 00:01:34]} Rxc1 {[%clk 00:15:03]} {[%emt
00:01:17]} 23. Rxc1 {[%clk 00:19:13]} {[%emt 00:00:04]} Nd7 {[%clk 00:15:01]}
{[%emt 00:00:06]} 24. Bxg7 {[%clk 00:18:52]} {[%emt 00:00:27]} Kxg7 {[%clk
00:15:03]} {[%emt 00:00:02]} 25. Qf4 {[%clk 00:14:06]} {[%emt 00:04:52]} Nc5
{[%clk 00:14:34]} {[%emt 00:00:33]} 26. Bc2 {[%clk 00:14:08]} {[%emt 00:00:03]}
Qf6 {[%clk 00:14:30]} {[%emt 00:00:09]} 27. Qxf6+ {[%clk 00:13:54]} {[%emt
00:00:20]} Kxf6 {[%clk 00:14:33]} {[%emt 00:00:01]} 28. f3 {[%clk 00:13:06]}
{[%emt 00:00:53]} Ke5 {[%clk 00:14:11]} {[%emt 00:00:27]} 29. Rd1 {[%clk
00:11:58]} {[%emt 00:01:13]} g5 {[%clk 00:14:09]} {[%emt 00:00:06]} 30. Kf2
{[%clk 00:11:50]} {[%emt 00:00:13]} Rc8 {[%clk 00:13:46]} {[%emt 00:00:28]} 31.
Ke3 {[%clk 00:10:25]} {[%emt 00:01:30]} Nxa4 {[%clk 00:11:09]} {[%emt
00:02:42]} 32. bxa4 {[%clk 00:09:54]} {[%emt 00:00:36]} Rxc2 {[%clk 00:11:09]}
{[%emt 00:00:05]} 33. g3 {[%clk 00:09:47]} {[%emt 00:00:12]} Ra2 {[%clk
00:10:39]} {[%emt 00:00:35]} 34. f4+ {[%clk 00:09:43]} {[%emt 00:00:09]} gxf4+
{[%clk 00:09:59]} {[%emt 00:00:45]} 35. gxf4+ {[%clk 00:09:47]} Kf6 {[%clk
00:10:03]} {[%emt 00:00:02]} 36. e5+ {[%clk 00:08:55]} {[%emt 00:00:57]} Ke7
{[%clk 00:10:06]} 37. Rc1 {[%clk 00:08:27]} {[%emt 00:00:34]} Ra3+ {[%clk
00:10:01]} {[%emt 00:00:10]} 38. Ke4 {[%clk 00:08:17]} {[%emt 00:00:15]} Rxa4
{[%clk 00:10:05]} {[%emt 00:00:02]} 39. Rc7+ {[%clk 00:07:59]} {[%emt
00:00:23]} Kd8 {[%clk 00:09:59]} {[%emt 00:00:11]} 40. exd6 {[%clk 00:07:22]}
{[%emt 00:00:42]} b3+ {[%clk 00:10:01]} {[%emt 00:00:03]} 41. Ke5 {[%clk
00:07:19]} {[%emt 00:00:08]} b2 {[%clk 00:10:04]} {[%emt 00:00:02]} 42. Rxf7
{[%clk 00:04:42]} {[%emt 00:02:42]} b1=Q {[%clk 00:09:38]} {[%emt 00:00:31]} 43.
Rf8+ {[%clk 00:04:45]} {[%emt 00:00:02]} Kd7 {[%clk 00:09:34]} {[%emt
00:00:09]} 44. Rf7+ {[%clk 00:04:48]} {[%emt 00:00:01]} Kd8 {[%clk 00:09:24]}
{[%emt 00:00:17]} 45. Rf8+ {[%clk 00:04:50]} {[%emt 00:00:02]} Kd7 {[%clk
00:09:28]} 46. Rf7+ {[%clk 00:04:54]} {[%emt 00:00:01]} Kc8 {[%clk 00:09:32]}
{[%emt 00:00:01]} 47. d7+ {[%clk 00:04:16]} {[%emt 00:00:43]} Kd8 {[%clk
00:09:33]} {[%emt 00:00:04]} 48. Ke6 {[%clk 00:04:13]} {[%emt 00:00:08]} Re4+
{[%clk 00:09:18]} {[%emt 00:00:20]} 49. Kf6 {[%clk 00:04:10]} {[%emt 00:00:08]}
Rxf4+ {[%clk 00:09:11]} {[%emt 00:00:04]} 0-1

[Event "New Zealand Rapid Championship"]
[Site "Wellington"]
[Date "2023.01.12"]
[Round "7.12"]
[White "Winsley, Nicholas"]
[Black "Tang, Hao"]
[Result "1-0"]
[TimeControl "25+5"]
[WhiteFideId "4315146"]
[BlackFideId "4311280"]
[WhiteElo "1854"]
[BlackElo "1846"]

1. e4 {[%clk 00:25:08]} {[%emt 00:00:02]} c5 {[%clk 00:25:08]} {[%emt
00:00:02]} 2. Nf3 {[%clk 00:25:10]} {[%emt 00:00:03]} d6 {[%clk 00:25:10]}
{[%emt 00:00:03]} 3. d4 {[%clk 00:25:13]} {[%emt 00:00:02]} cxd4 {[%clk
00:25:13]} {[%emt 00:00:02]} 4. Nxd4 {[%clk 00:25:16]} Nf6 {[%clk 00:25:17]}
{[%emt 00:00:02]} 5. Nc3 {[%clk 00:25:19]} {[%emt 00:00:02]} g6 {[%clk
00:25:22]} 6. Be3 {[%clk 00:25:07]} {[%emt 00:00:17]} Bg7 {[%clk 00:25:23]}
{[%emt 00:00:03]} 7. f3 {[%clk 00:24:12]} {[%emt 00:01:01]} a6 {[%clk
00:25:24]} {[%emt 00:00:05]} 8. Bc4 {[%clk 00:23:54]} {[%emt 00:00:22]} Nbd7
{[%clk 00:25:24]} {[%emt 00:00:05]} 9. Qd2 {[%clk 00:23:46]} {[%emt 00:00:14]}
h5 {[%clk 00:25:27]} {[%emt 00:00:01]} 10. O-O-O {[%clk 00:21:56]} {[%emt
00:01:55]} b5 {[%clk 00:25:31]} 11. Bd5 {[%clk 00:21:18]} {[%emt 00:00:43]}
Nxd5 {[%clk 00:25:02]} {[%emt 00:00:34]} 12. Nxd5 {[%clk 00:21:16]} {[%emt
00:00:07]} Bb7 {[%clk 00:24:52]} {[%emt 00:00:15]} 13. Bg5 {[%clk 00:19:00]}
{[%emt 00:02:21]} Bxd5 {[%clk 00:21:17]} {[%emt 00:03:41]} 14. exd5 {[%clk
00:19:03]} {[%emt 00:00:02]} Bxd4 {[%clk 00:19:15]} {[%emt 00:02:08]} 15. Qxd4
{[%clk 00:18:54]} {[%emt 00:00:14]} O-O {[%clk 00:19:12]} {[%emt 00:00:08]} 16.
Bh6 {[%clk 00:18:38]} {[%emt 00:00:20]} Nf6 {[%clk 00:18:50]} {[%emt 00:00:26]}
17. Bxf8 {[%clk 00:18:00]} {[%emt 00:00:43]} Qxf8 {[%clk 00:18:53]} {[%emt
00:00:03]} 18. Kb1 {[%clk 00:17:52]} {[%emt 00:00:13]} Qd8 {[%clk 00:18:30]}
{[%emt 00:00:28]} 19. h4 {[%clk 00:17:39]} {[%emt 00:00:18]} Rc8 {[%clk
00:18:20]} {[%emt 00:00:15]} 20. g4 {[%clk 00:17:05]} {[%emt 00:00:39]} Qc7
{[%clk 00:18:22]} {[%emt 00:00:03]} 21. Rd2 {[%clk 00:16:46]} {[%emt 00:00:24]}
a5 {[%clk 00:17:54]} {[%emt 00:00:33]} 22. gxh5 {[%clk 00:16:34]} {[%emt
00:00:17]} Nxh5 {[%clk 00:17:52]} {[%emt 00:00:07]} 23. Rg1 {[%clk 00:16:27]}
{[%emt 00:00:12]} Kh7 {[%clk 00:17:14]} {[%emt 00:00:43]} 24. f4 {[%clk
00:15:23]} {[%emt 00:01:09]} Qd7 {[%clk 00:17:14]} {[%emt 00:00:05]} 25. Qe4
{[%emt 00:02:51]} Rc4 {[%clk 00:16:21]} 26. Rd4 {[%clk 00:12:46]} {[%emt
00:00:54]} Qa7 {[%clk 00:15:38]} {[%emt 00:00:47]} 27. Rgd1 {[%clk 00:12:06]}
{[%emt 00:00:46]} Rc5 {[%clk 00:12:21]} {[%emt 00:03:23]} 28. Re1 {[%clk
00:09:57]} {[%emt 00:02:14]} Rc7 {[%clk 00:12:07]} {[%emt 00:00:19]} 29. Rd3
{[%clk 00:09:54]} {[%emt 00:00:08]} Qf2 {[%clk 00:11:40]} {[%emt 00:00:31]} 30.
Rf3 {[%clk 00:08:53]} {[%emt 00:01:06]} Qxh4 {[%clk 00:08:29]} {[%emt
00:03:17]} 31. Rff1 {[%clk 00:07:58]} {[%emt 00:00:59]} Kg8 {[%clk 00:07:26]}
{[%emt 00:01:07]} 32. Qf3 {[%clk 00:06:31]} {[%emt 00:01:34]} Rc4 {[%clk
00:05:38]} {[%emt 00:01:52]} 33. f5 {[%clk 00:04:57]} {[%emt 00:01:39]} Rf4
{[%clk 00:05:29]} {[%emt 00:00:16]} 34. Qc3 {[%clk 00:01:43]} {[%emt 00:03:18]}
Rxf1 {[%clk 00:05:10]} {[%emt 00:00:24]} 35. Rxf1 {[%clk 00:01:40]} {[%emt
00:00:08]} Ng3 {[%clk 00:05:09]} {[%emt 00:00:05]} 36. Rg1 {[%clk 00:01:16]}
{[%emt 00:00:30]} Nxf5 {[%clk 00:04:57]} {[%emt 00:00:18]} 37. Qxa5 {[%clk
00:01:09]} {[%emt 00:00:12]} Qh2 {[%clk 00:03:11]} {[%emt 00:01:49]} 38. Re1
{[%clk 00:00:40]} {[%emt 00:00:37]} Nd4 {[%clk 00:02:42]} {[%emt 00:00:33]} 39.
Qc3 {[%clk 00:00:35]} {[%emt 00:00:09]} Nf5 {[%clk 00:02:18]} {[%emt 00:00:30]}
40. a3 {[%clk 00:00:24]} {[%emt 00:00:16]} Qg2 {[%clk 00:02:03]} {[%emt
00:00:19]} 41. Qd3 {[%clk 00:00:22]} {[%emt 00:00:07]} Qh2 {[%clk 00:01:36]}
{[%emt 00:00:32]} 42. Qxb5 {[%clk 00:00:23]} {[%emt 00:00:05]} Qh4 {[%clk
00:01:10]} {[%emt 00:00:30]} 43. Qb4 {[%clk 00:00:24]} {[%emt 00:00:05]} Qh2
{[%clk 00:00:47]} {[%emt 00:00:28]} 44. a4 {[%clk 00:00:27]} {[%emt 00:00:02]}
Qg2 {[%clk 00:00:23]} {[%emt 00:00:29]} 45. Rd1 {[%clk 00:00:27]} {[%emt
00:00:05]} Ne3 {[%clk 00:00:23]} {[%emt 00:00:04]} 46. Qd2 {[%clk 00:00:21]}
{[%emt 00:00:12]} Qe4 {[%clk 00:00:09]} {[%emt 00:00:19]} 47. Re1 {[%clk
00:00:20]} {[%emt 00:00:05]} Nc4 {[%clk 00:00:12]} {[%emt 00:00:02]} 48. Qe2
{[%clk 00:00:11]} {[%emt 00:00:15]} Qd4 {[%clk 00:00:07]} {[%emt 00:00:10]} 49.
c3 {[%clk 00:00:11]} {[%emt 00:00:05]} Qxd5 {[%clk 00:00:08]} {[%emt 00:00:05]}
50. Qxe7 {[%clk 00:00:13]} {[%emt 00:00:03]} Nd2+ {[%clk 00:00:10]} {[%emt
00:00:02]} 51. Kc2 {[%clk 00:00:10]} {[%emt 00:00:07]} Nc4 {[%clk 00:00:08]}
{[%emt 00:00:08]} 52. Qe4 {[%clk 00:00:10]} {[%emt 00:00:03]} Qd2+ {[%clk
00:00:07]} {[%emt 00:00:07]} 53. Kb3 {[%clk 00:00:12]} {[%emt 00:00:05]} Nxb2
{[%clk 00:00:09]} {[%emt 00:00:03]} 54. Re2 {[%clk 00:00:08]} {[%emt 00:00:09]}
1-0